bitfinex-derivatives/quotes_BTCF0:USTF0_20250722
["timestamp","ask_amount","ask_price","bid_price","bid_amount"]
[1753220360344,1.18442234,119580.0,119570.0,0.69705495]
[1753220360645,1.18442234,119580.0,119570.0,0.62179823]
[1753220361150,1.18442234,119580.0,119570.0,0.63159826]
[1753220361350,1.18442234,119580.0,119570.0,0.64466497]
[1753220366851,1.18442234,119580.0,119570.0,0.38001453]
[1753220367057,1.44907278,119580.0,119570.0,0.32155589]
[1753220367357,1.18442234,119580.0,119570.0,0.65770633]
[1753220367653,1.18442234,119580.0,119570.0,0.6577071]
[1753220367854,1.18442234,119580.0,119550.0,0.3182783]
[1753220367855,0.1896998,119560.0,119550.0,0.3182783]
[1753220368056,1.39165068,119560.0,119550.0,0.28270941]
[1753220368558,1.39165068,119560.0,119550.0,0.17735]
[1753220369357,1.39165068,119560.0,119550.0,0.18435]
[1753220369358,1.39265068,119560.0,119550.0,0.18435]
[1753220369550,1.39365068,119560.0,119550.0,0.21508057]
[1753220370561,1.39365068,119560.0,119550.0,0.28044794]
[1753220373762,1.39365068,119560.0,119550.0,0.24075794]
[1753220373952,1.39365068,119560.0,119550.0,0.23194794]
[1753220375062,1.39365068,119560.0,119550.0,0.27163794]
[1753220377865,1.39365068,119560.0,119550.0,0.33173646]
[1753220378162,1.39365068,119560.0,119550.0,0.27163794]
[1753220378359,1.39365068,119560.0,119550.0,0.33173646]
[1753220379363,1.39465068,119560.0,119550.0,0.32473646]
[1753220379562,1.39365068,119560.0,119550.0,0.31373646]
[1753220379862,1.39565068,119560.0,119550.0,0.31373646]
[1753220380264,1.39565068,119560.0,119550.0,0.25363794]
[1753220385159,1.39565068,119560.0,119550.0,0.26670769]
[1753220385361,1.39565068,119560.0,119550.0,0.31174125]
[1753220385559,1.39565068,119560.0,119550.0,0.27205125]
[1753220385764,1.39565068,119560.0,119550.0,0.2589815]
[1753220385958,1.39565068,119560.0,119550.0,0.27205125]
[1753220389667,1.43519068,119560.0,119550.0,0.27205125]
[1753220390167,0.9058898,119560.0,119550.0,0.31146125]
[1753220390465,1.43519068,119560.0,119550.0,0.31146125]
[1753220391769,1.43519068,119560.0,119550.0,0.26642769]
[1753220391971,1.43519068,119560.0,119550.0,0.2664278]
[1753220392573,0.9058898,119560.0,119550.0,0.2664278]
[1753220392769,1.43519068,119560.0,119550.0,0.2664278]
[1753220392971,1.43519068,119560.0,119550.0,0.2748878]
[1753220395076,1.43519068,119560.0,119550.0,0.26181794]
[1753220395376,1.43519068,119560.0,119550.0,0.2748878]
[1753220395672,1.43519068,119560.0,119550.0,0.26181794]
[1753220395976,1.43519068,119560.0,119550.0,0.2748878]
[1753220396376,1.43519068,119560.0,119550.0,0.33498632]
[1753220397579,1.43519068,119560.0,119550.0,0.59963676]
[1753220397778,1.17054024,119560.0,119550.0,0.59963676]
[1753220400279,0.9058898,119560.0,119550.0,0.29557632]
[1753220400475,1.3231778,119560.0,119550.0,0.08524944]
[1753220400780,1.3231778,119560.0,119530.0,0.17185852]
[1753220400781,0.2562075,119540.0,119530.0,0.11354152]
[1753220400984,1.35650838,119540.0,119530.0,0.06720443]
[1753220401280,1.35650838,119540.0,119530.0,0.01307143]
[1753220401687,1.35650838,119540.0,119530.0,3e-08]
[1753220402084,1.35650838,119540.0,119530.0,0.06717498]
[1753220402382,1.35650838,119540.0,119530.0,0.00100003]
[1753220402585,1.62115882,119540.0,119530.0,3e-08]
[1753220402784,0.2562217,119530.0,119520.0,0.0539236]
[1753220403080,0.78552258,119530.0,119520.0,0.0539236]
[1753220404374,0.2562217,119530.0,119520.0,0.0539236]
[1753220404581,0.52087214,119530.0,119520.0,0.46802404]
[1753220404879,1.09191214,119530.0,119520.0,0.46802404]
[1753220406283,1.09191214,119530.0,119520.0,0.53548003]
[1753220411386,1.09443214,119530.0,119520.0,0.53548003]
[1753220415389,0.8297817,119530.0,119520.0,0.53548003]
[1753220415591,1.09443214,119530.0,119520.0,0.53548003]
[1753220415887,1.09443214,119530.0,119520.0,0.27082959]
[1753220416089,1.09443214,119530.0,119520.0,0.23141959]
[1753220416090,1.09568214,119530.0,119520.0,0.23141959]
[1753220416389,1.09568214,119530.0,119520.0,0.53660003]
[1753220416584,1.09526214,119530.0,119520.0,0.53660003]
[1753220416984,1.09443214,119530.0,119520.0,0.53660003]
[1753220418391,1.09443214,119530.0,119520.0,0.27194959]
[1753220418793,1.09443214,119530.0,119520.0,0.53660003]
[1753220420294,0.52287214,119530.0,119520.0,0.53660003]
[1753220420594,1.04556214,119530.0,119520.0,0.54967258]
[1753220420892,1.09560214,119530.0,119520.0,0.54967258]
[1753220421394,1.09560214,119530.0,119520.0,0.53660003]
[1753220421597,1.09560214,119530.0,119520.0,0.56274459]
[1753220426507,1.09560214,119530.0,119520.0,0.73000999]
[1753220427105,0.7390117,119530.0,119520.0,1.05470065]
[1753220428307,0.7390117,119530.0,119520.0,1.05570065]
[1753220428607,0.7390117,119530.0,119520.0,1.05770065]
[1753220429208,0.7390117,119530.0,119520.0,0.99766043]
[1753220429907,0.7390117,119530.0,119520.0,1.05779998]
[1753220430906,0.7390117,119530.0,119520.0,1.05779931]
[1753220432413,0.7390117,119530.0,119520.0,0.99765976]
[1753220433112,0.7389317,119530.0,119520.0,0.99765976]
[1753220434212,0.7389317,119530.0,119520.0,1.07280321]
[1753220435511,0.1672517,119530.0,119520.0,1.07280321]
[1753220435715,0.7386917,119530.0,119520.0,1.07280321]
[1753220436014,0.1672517,119530.0,119520.0,1.07280321]
[1753220436318,0.7386517,119530.0,119520.0,0.99765976]
[1753220436715,0.7386517,119530.0,119520.0,1.10301917]
[1753220437012,0.7386517,119530.0,119520.0,1.10301766]
[1753220438715,0.7386517,119530.0,119520.0,0.99765825]
[1753220439316,0.7386517,119530.0,119520.0,0.98458815]
[1753220439816,0.7386517,119530.0,119520.0,1.08994756]
[1753220440020,0.7386517,119530.0,119520.0,1.09975015]
[1753220440915,0.7386517,119530.0,119520.0,1.11282028]
[1753220441217,0.7386517,119530.0,119520.0,1.11282047]
[1753220445921,0.7386517,119530.0,119520.0,0.58351959]
[1753220446220,0.7386517,119530.0,119520.0,1.11282047]
[1753220450025,0.7386517,119530.0,119520.0,1.10301771]
[1753220450322,0.7386517,119530.0,119520.0,1.11282038]
[1753220453723,0.1672517,119530.0,119520.0,1.11282038]
[1753220459327,0.1672517,119530.0,119520.0,1.09975013]
[1753220459529,0.1672517,119530.0,119520.0,1.11282023]
[1753220462720,0.1672517,119530.0,119520.0,1.00746082]
[1753220464123,0.1672517,119530.0,119520.0,0.47815994]
[1753220464423,0.1672517,119530.0,119520.0,1.00746082]
[1753220465327,0.7441545,119540.0,119520.0,1.13290342]
[1753220465529,0.7831845,119540.0,119530.0,0.71034963]
[1753220465729,0.9504224,119540.0,119530.0,0.7332223]
[1753220466227,0.9504224,119540.0,119530.0,0.73322228]
[1753220466426,0.9504224,119540.0,119530.0,0.73322227]
[1753220467528,0.9504224,119540.0,119530.0,0.72015219]
[1753220467724,0.9504224,119540.0,119530.0,0.73322227]
[1753220467926,0.8637124,119540.0,119530.0,0.73322227]
[1753220468525,0.9010124,119540.0,119530.0,0.73322227]
[1753220469236,0.9010124,119540.0,119530.0,0.73422227]
[1753220470929,0.9010124,119540.0,119530.0,0.62883498]
[1753220471633,0.9010124,119540.0,119530.0,0.63083498]
[1753220472433,0.9010124,119540.0,119530.0,0.63083469]
[1753220473637,0.9010124,119540.0,119530.0,0.63083467]
[1753220475535,0.57104,119540.0,119530.0,0.89548511]
[1753220475837,0.57104,119540.0,119530.0,0.97074737]
[1753220476529,0.2883522,119550.0,119540.0,0.1672379]
[1753220476736,0.0373,119550.0,119540.0,0.97626158]
[1753220476929,0.8661044,119560.0,119550.0,0.3314439]
[1753220477131,0.8659044,119560.0,119550.0,0.71158321]
[1753220477330,0.8659044,119560.0,119550.0,0.71158279]
[1753220477737,0.8659044,119560.0,119550.0,0.63633446]
[1753220478437,0.8669044,119560.0,119550.0,0.63633446]
[1753220479736,0.8182844,119560.0,119550.0,0.63633446]
[1753220480638,0.8172844,119560.0,119550.0,0.71158279]
[1753220480827,0.7799844,119560.0,119550.0,0.71358279]
[1753220481439,0.8172844,119560.0,119550.0,0.71358279]
[1753220482035,0.8172844,119560.0,119550.0,0.71458279]
[1753220484241,0.8172844,119560.0,119550.0,0.63933446]
[1753220485640,0.8172844,119560.0,119550.0,0.62953322]
[1753220485842,0.8172844,119560.0,119550.0,0.63933262]
[1753220489245,0.7798644,119560.0,119550.0,0.63933262]
[1753220489644,0.8171644,119560.0,119550.0,0.63933262]
[1753220490346,0.8171644,119560.0,119550.0,0.69940506]
[1753220491244,0.7753603,119560.0,119550.0,0.69940506]
[1753220493338,0.57084,119560.0,119550.0,0.9640555]
[1753220493839,0.60814,119560.0,119550.0,0.9640555]
[1753220494650,0.60814,119560.0,119550.0,0.96405501]
[1753220494847,0.60814,119560.0,119550.0,0.96405436]
[1753220495046,0.60814,119560.0,119550.0,0.90398192]
[1753220495449,0.0373,119560.0,119550.0,1.47474192]
[1753220496348,0.2045099,119560.0,119550.0,1.47474192]
[1753220497446,0.78243078,119560.0,119550.0,0.06111714]
[1753220497646,0.78243078,119560.0,119550.0,0.10092695]
[1753220497854,0.2501439,119550.0,119540.0,0.07505981]
[1753220498148,1.08551434,119550.0,119540.0,0.09793147]
[1753220498351,1.08551434,119550.0,119540.0,0.05437147]
[1753220498554,1.51746878,119550.0,119540.0,0.08293911]
[1753220498941,0.1672379,119540.0,119530.0,0.06006745]
[1753220499151,0.1672379,119540.0,119530.0,0.08294213]
[1753220499152,0.52002855,119540.0,119530.0,0.08294213]
[1753220499953,0.52002855,119540.0,119530.0,0.02287468]
[1753220500446,0.52002855,119540.0,119530.0,0.01307125]
[1753220500950,0.1672519,119530.0,119520.0,0.27014932]
[1753220501154,0.7380119,119530.0,119520.0,0.293024]
[1753220501546,1.09080255,119530.0,119520.0,0.275494]
[1753220501851,1.09080255,119530.0,119520.0,0.17321057]
[1753220502145,1.09180255,119530.0,119520.0,0.17321057]
[1753220502848,1.09280255,119530.0,119520.0,0.20562312]
[1753220503047,0.7400119,119530.0,119520.0,0.19255187]
[1753220504255,0.7400119,119530.0,119520.0,0.23754567]
[1753220506052,0.7400119,119530.0,119520.0,0.1750447]
[1753220506257,1.09280255,119530.0,119520.0,0.1555011]
[1753220506957,1.09280255,119530.0,119520.0,0.17331243]
[1753220507555,1.09280255,119530.0,119520.0,0.26579243]
[1753220508258,0.7400119,119530.0,119520.0,0.26579243]
[1753220508859,0.7400119,119530.0,119520.0,0.28332243]
[1753220510054,0.7400119,119530.0,119520.0,0.23832863]
[1753220512965,1.09280255,119530.0,119520.0,0.23832863]
[1753220513264,1.09280255,119530.0,119520.0,0.2205173]
[1753220514159,1.09280255,119530.0,119520.0,0.23773839]
[1753220519363,1.00462656,119530.0,119520.0,0.50235305]
[1753220521864,1.00462656,119530.0,119520.0,0.23773839]
[1753220522064,1.00462656,119530.0,119520.0,0.50235305]
[1753220522466,1.00462656,119530.0,119520.0,0.26124839]
[1753220522665,1.00462656,119530.0,119520.0,0.52586305]
[1753220523164,1.00462656,119530.0,119520.0,0.57085685]
[1753220523366,1.00462656,119530.0,119520.0,0.30624219]
[1753220524265,1.00462656,119530.0,119520.0,0.289336]
[1753220525264,1.00462656,119530.0,119520.0,0.27626316]
[1753220525468,1.00462656,119530.0,119520.0,0.289336]
[1753220526266,1.00462656,119530.0,119520.0,0.29914063]
[1753220526666,1.00462656,119530.0,119520.0,0.27563063]
[1753220527067,1.00462656,119530.0,119520.0,0.23063683]
[1753220528369,1.00462656,119530.0,119520.0,0.29070428]
[1753220529268,1.00462656,119530.0,119520.0,0.55531894]
[1753220529671,1.00462656,119530.0,119520.0,0.57642894]
[1753220532071,1.00462656,119530.0,119520.0,0.31181428]
[1753220532373,1.00462656,119530.0,119520.0,0.62231894]
[1753220535075,1.00462656,119530.0,119520.0,0.6092461]
[1753220535281,1.00462656,119530.0,119520.0,0.62231894]
[1753220535875,1.00462656,119530.0,119520.0,0.35770428]
[1753220536084,1.00462656,119530.0,119520.0,0.62231894]
[1753220540085,1.00462656,119530.0,119520.0,0.35770428]
[1753220540293,1.00462656,119530.0,119520.0,0.62231894]
[1753220541883,1.00462656,119530.0,119520.0,0.35770428]
[1753220543689,1.00462656,119530.0,119520.0,0.33482681]
[1753220543988,1.00462656,119530.0,119520.0,0.35770407]
[1753220550395,1.00462656,119530.0,119520.0,0.33155907]
[1753220551893,1.00462656,119530.0,119520.0,0.22980798]
[1753220552792,1.00462656,119530.0,119520.0,0.24592798]
[1753220553397,1.00462656,119530.0,119520.0,0.2617863]
[1753220553800,1.00462656,119530.0,119520.0,0.25198176]
[1753220558694,1.00462656,119530.0,119520.0,0.23586176]
[1753220559296,1.00462656,119530.0,119520.0,0.25222176]
[1753220559598,1.00462656,119530.0,119520.0,0.2620265]
[1753220560000,1.00462656,119530.0,119520.0,0.24616818]
[1753220560797,1.00462656,119530.0,119520.0,0.25924117]
[1753220561498,1.00462656,119530.0,119520.0,0.27494407]
[1753220562902,1.00462656,119530.0,119520.0,0.25924117]
[1753220563105,0.7400119,119530.0,119520.0,0.25924117]
[1753220563405,1.00462656,119530.0,119520.0,0.25924117]
[1753220565304,1.00462656,119530.0,119520.0,0.27486721]
[1753220573811,1.00462656,119530.0,119520.0,0.2748671]
[1753220574816,1.00462656,119530.0,119520.0,0.27486719]
[1753220575307,0.7400119,119530.0,119520.0,0.27486719]
[1753220575508,1.00462656,119530.0,119520.0,0.25924115]
[1753220577609,1.00462656,119530.0,119520.0,0.24616818]
[1753220577811,1.00462656,119530.0,119520.0,0.23636344]
[1753220578009,1.00462656,119530.0,119520.0,0.25924136]
[1753220578815,0.7400119,119530.0,119520.0,0.25924136]
[1753220579114,1.26924122,119530.0,119520.0,0.24288136]
[1753220579709,1.26924122,119530.0,119520.0,0.2428814]
[1753220582817,1.26924122,119530.0,119520.0,0.18281395]
[1753220583219,1.26924122,119530.0,119520.0,0.19917395]
[1753220586215,1.26924122,119530.0,119520.0,0.19917429]
[1753220586420,1.26924122,119530.0,119520.0,0.19917455]
[1753220586820,0.7400119,119530.0,119520.0,0.19917455]
[1753220587017,1.26924122,119530.0,119520.0,0.19917455]
[1753220588422,1.26924122,119530.0,119520.0,0.24433943]
[1753220588913,1.26924122,119530.0,119520.0,0.13549943]
[1753220589109,1.26924122,119530.0,119520.0,0.18907943]
[1753220589314,1.26924122,119530.0,119520.0,0.22079943]
[1753220590422,1.26924122,119530.0,119520.0,0.23730943]
[1753220591016,1.26924122,119530.0,119520.0,0.22750433]
[1753220591224,1.26924122,119530.0,119520.0,0.23730967]
[1753220591422,1.26924122,119530.0,119520.0,0.22423621]
[1753220591725,0.7400119,119530.0,119520.0,0.22423621]
[1753220591917,1.26924122,119530.0,119520.0,0.22423621]
[1753220592222,0.7400119,119530.0,119520.0,0.22423621]
[1753220592423,1.26924122,119530.0,119520.0,0.22423621]
[1753220592917,1.26924122,119530.0,119520.0,0.15584307]
[1753220593125,1.28511537,119530.0,119520.0,0.13061057]
[1753220593424,1.26924122,119530.0,119520.0,0.13061057]
[1753220594730,1.26924122,119530.0,119520.0,0.15150057]
[1753220595026,1.26924122,119530.0,119520.0,0.21811593]
[1753220596424,1.26924122,119530.0,119520.0,0.15150057]
[1753220598030,1.26924122,119530.0,119520.0,0.13061057]
[1753220601533,0.7400119,119530.0,119520.0,0.13061057]
[1753220601733,1.26924122,119530.0,119520.0,0.10181]
[1753220604330,1.26924122,119530.0,119520.0,0.0853]
[1753220605627,1.26924122,119530.0,119520.0,0.10181]
[1753220606139,1.27057008,119530.0,119520.0,0.10181]
[1753220606638,1.27078257,119530.0,119520.0,0.10181]
[1753220608440,1.26924122,119530.0,119520.0,0.10181]
[1753220608639,1.27130373,119530.0,119520.0,0.10181]
[1753220609638,1.27182491,119530.0,119520.0,0.10181]
[1753220612341,0.74259559,119530.0,119520.0,0.10181]
[1753220612542,1.00721025,119530.0,119520.0,0.16815]
[1753220613341,1.27182491,119530.0,119520.0,0.16815]
[1753220614742,1.27182491,119530.0,119520.0,0.22639208]
[1753220615136,1.27182491,119530.0,119520.0,0.23619906]
[1753220615537,0.74259559,119530.0,119520.0,0.23619906]
[1753220615739,1.27182491,119530.0,119520.0,0.23619906]
[1753220615939,1.2719507,119530.0,119520.0,0.23619906]
[1753220616644,1.27207649,119530.0,119520.0,0.23619906]
[1753220617536,1.27207649,119530.0,119520.0,0.19102936]
[1753220618845,1.27254897,119530.0,119520.0,0.19102936]
[1753220619245,1.00793431,119530.0,119520.0,0.19102936]
[1753220619444,1.00893431,119530.0,119520.0,0.19102936]
[1753220619645,0.74431965,119530.0,119520.0,0.19102936]
[1753220619849,0.74479214,119530.0,119520.0,0.19102936]
[1753220620038,1.0094068,119530.0,119520.0,0.19102936]
[1753220620645,0.74526463,119530.0,119520.0,0.19102936]
[1753220620942,1.00987929,119530.0,119520.0,0.19102936]
[1753220621142,1.00987929,119530.0,119520.0,0.23620497]
[1753220622345,1.01035178,119530.0,119520.0,0.23620497]
[1753220622842,1.01035178,119530.0,119520.0,0.21332561]
[1753220623144,0.74573712,119530.0,119520.0,0.23620453]
[1753220623346,1.01082427,119530.0,119520.0,0.23620453]
[1753220624547,1.01099237,119530.0,119520.0,0.23620453]
[1753220625048,1.01116047,119530.0,119520.0,0.23620453]
[1753220625542,1.01116047,119530.0,119520.0,0.19102892]
[1753220626647,1.01132857,119530.0,119520.0,0.19102892]
[1753220627651,0.74688201,119530.0,119520.0,0.19102892]
[1753220627950,1.27611133,119530.0,119520.0,0.16985826]
[1753220628948,0.74688201,119530.0,119520.0,0.16985826]
[1753220629249,1.27611133,119530.0,119520.0,0.16985826]
[1753220629544,1.27511133,119530.0,119520.0,0.16985826]
[1753220629750,1.27611133,119530.0,119520.0,0.16985826]
[1753220629949,1.27611133,119530.0,119520.0,0.15334826]
[1753220630547,1.27511133,119530.0,119520.0,0.16855826]
[1753220630749,1.27611133,119530.0,119520.0,0.06804826]
[1753220631046,1.27611133,119530.0,119520.0,0.01705536]
[1753220631247,1.27611133,119530.0,119520.0,6e-08]
[1753220631551,0.1672658,119520.0,119510.0,0.01598556]
[1753220631847,0.1672798,119510.0,119500.0,0.0987]
[1753220632049,1.00565446,119510.0,119500.0,0.11267362]
[1753220632249,1.00565446,119510.0,119500.0,0.11617452]
[1753220632449,1.0119296,119510.0,119500.0,0.11617452]
[1753220633349,1.00565446,119510.0,119500.0,0.18188592]
[1753220633550,1.27697919,119510.0,119500.0,0.0879909]
[1753220633746,1.27697919,119510.0,119500.0,0.14920592]
[1753220634052,1.27741412,119510.0,119500.0,0.14920592]
[1753220634257,1.27741412,119510.0,119500.0,0.0889909]
[1753220634452,1.27784905,119510.0,119500.0,0.0889909]
[1753220635052,1.27026912,119510.0,119500.0,0.1042009]
[1753220635255,1.27828398,119510.0,119500.0,0.1042009]
[1753220635649,1.27871891,119510.0,119500.0,0.1042009]
[1753220635853,1.27871891,119510.0,119500.0,0.1698809]
[1753220636147,1.01410425,119510.0,119500.0,0.1698809]
[1753220638952,1.01430469,119510.0,119500.0,0.1698809]
[1753220639653,1.01450513,119510.0,119500.0,0.1698809]
[1753220640052,1.00565446,119510.0,119500.0,0.1698809]
[1753220640348,1.01470557,119510.0,119500.0,0.1698809]
[1753220640855,1.01490601,119510.0,119500.0,0.1698809]
[1753220641356,1.01510645,119510.0,119500.0,0.1698809]
[1753220642953,1.01510645,119510.0,119500.0,0.19276321]
[1753220643360,1.27972111,119510.0,119500.0,0.19276321]
[1753220644360,1.27972111,119510.0,119500.0,0.1698809]
[1753220644559,1.27026912,119510.0,119500.0,0.1698809]
[1753220644761,1.27992214,119510.0,119500.0,0.1698809]
[1753220645559,1.27992214,119510.0,119500.0,0.18295667]
[1753220645864,1.0157134,119510.0,119500.0,0.1698809]
[1753220647060,1.01611881,119510.0,119500.0,0.1698809]
[1753220648065,0.44235881,119510.0,119500.0,0.1698809]
[1753220648261,0.17815007,119510.0,119500.0,1.03376392]
[1753220648468,0.75259007,119510.0,119500.0,1.03376392]
[1753220648663,0.75259007,119510.0,119500.0,1.10868453]
[1753220648968,0.75259007,119510.0,119500.0,1.35868453]
[1753220649367,0.75299548,119510.0,119500.0,1.35868453]
[1753220650170,0.75299548,119510.0,119500.0,0.82945521]
[1753220650469,0.75299548,119510.0,119500.0,1.35868453]
[1753220651265,0.7534014,119510.0,119500.0,1.35868453]
[1753220652474,0.75362645,119510.0,119500.0,1.35868453]
[1753220654373,0.75362645,119510.0,119500.0,1.10868453]
[1753220655070,0.75362645,119510.0,119500.0,0.57945521]
[1753220655376,0.75362645,119510.0,119500.0,1.10868453]
[1753220655774,0.7538104,119510.0,119500.0,1.10868453]
[1753220656373,0.7538104,119510.0,119500.0,1.12175704]
[1753220656876,0.75403546,119510.0,119500.0,1.12175704]
[1753220657477,0.75418526,119510.0,119500.0,1.12175704]
[1753220659376,0.75463442,119510.0,119500.0,1.12175704]
[1753220660078,0.75463442,119510.0,119500.0,1.13156142]
[1753220660278,0.75463442,119510.0,119500.0,1.12175704]
[1753220660478,0.7417198,119510.0,119500.0,1.12175704]
[1753220660781,0.75508358,119510.0,119500.0,1.12175704]
[1753220661679,0.75553274,119510.0,119500.0,1.12175704]
[1753220663575,0.1815419,119510.0,119500.0,1.12175704]
[1753220664176,0.18199106,119510.0,119500.0,1.12175704]
[1753220665384,0.18199106,119510.0,119500.0,1.12175706]
[1753220665588,0.18199106,119510.0,119500.0,1.69755706]
[1753220665884,0.18199106,119510.0,119500.0,1.53019706]
[1753220666783,0.18217777,119510.0,119500.0,1.53019706]
[1753220668177,0.18217777,119510.0,119500.0,1.51712453]
[1753220668379,0.18236472,119510.0,119500.0,1.51712453]
[1753220668579,0.18236472,119510.0,119500.0,1.53019706]
[1753220669480,0.18255167,119510.0,119500.0,1.53019706]
[1753220670686,0.18273862,119510.0,119500.0,1.53019706]
[1753220671388,0.18273862,119510.0,119500.0,1.53019693]
[1753220671986,0.18292557,119510.0,119500.0,1.53019693]
[1753220672987,0.18334237,119510.0,119500.0,1.45527632]
[1753220673286,0.18334237,119510.0,119500.0,1.53019693]
[1753220674089,0.18375945,119510.0,119500.0,1.53019693]
[1753220674585,0.18375945,119510.0,119500.0,1.45527632]
[1753220675384,0.18375945,119510.0,119500.0,1.51537976]
[1753220675385,0.18417653,119510.0,119500.0,1.51537976]
[1753220676280,0.18417653,119510.0,119500.0,1.45527632]
[1753220676489,0.18450408,119510.0,119500.0,1.45527632]
[1753220677278,0.18450408,119510.0,119500.0,1.44220392]
[1753220677479,0.18450408,119510.0,119500.0,1.45527625]
[1753220682486,0.18471948,119510.0,119500.0,1.45527625]
[1753220683188,0.18493488,119510.0,119500.0,1.45527625]
[1753220684892,0.18493488,119510.0,119500.0,1.56066354]
[1753220686193,0.18532589,119510.0,119500.0,1.56066354]
[1753220687190,0.1672798,119510.0,119500.0,1.54759121]
[1753220687492,0.18565168,119510.0,119500.0,1.56066354]
[1753220689096,0.18565168,119510.0,119500.0,1.57046776]
[1753220689497,0.18565168,119510.0,119500.0,1.64575781]
[1753220689691,0.18565168,119510.0,119500.0,1.54037052]
[1753220691697,0.18565168,119510.0,119500.0,1.46508047]
[1753220692499,0.18565168,119510.0,119500.0,1.57046776]
[1753220693098,0.1672798,119510.0,119500.0,1.04123844]
[1753220693297,0.18588725,119510.0,119500.0,1.57046776]
[1753220693499,0.18612282,119510.0,119500.0,1.57046776]
[1753220693700,0.18612282,119510.0,119500.0,1.57046763]
[1753220695199,0.18612282,119510.0,119500.0,1.46508034]
[1753220695598,0.1672798,119510.0,119500.0,1.45200798]
[1753220695900,0.18635865,119510.0,119500.0,1.46508007]
[1753220698603,0.18673187,119510.0,119500.0,1.46508006]
[1753220699305,0.18673187,119510.0,119500.0,1.57046735]
[1753220700899,0.18673187,119510.0,119500.0,1.46508006]
[1753220704007,0.18673187,119510.0,119500.0,1.455276]
[1753220704204,0.18673187,119510.0,119500.0,1.46507985]
[1753220704499,0.18709379,119510.0,119500.0,1.46507985]
[1753220710404,0.01981399,119510.0,119500.0,1.46507985]
[1753220711808,0.18709369,119510.0,119500.0,1.46507985]
[1753220712811,0.18709369,119510.0,119500.0,1.4520079]
[1753220713205,0.18709369,119510.0,119500.0,1.46507959]
[1753220720122,0.18709369,119510.0,119500.0,1.45200778]
[1753220720324,0.18709369,119510.0,119500.0,1.46507959]
[1753220722218,0.18709369,119510.0,119500.0,1.45527573]
[1753220722419,0.18709369,119510.0,119500.0,1.4781514]
[1753220723820,0.01981399,119510.0,119500.0,1.4781514]
[1753220725327,0.01981399,119510.0,119500.0,1.46507959]
[1753220725528,0.01981399,119510.0,119500.0,1.47815127]
[1753220728330,0.01981399,119510.0,119500.0,1.58350821]
[1753220729329,0.1674777,119520.0,119510.0,0.3241297]
[1753220729629,0.6588291,119530.0,119520.0,0.3241157]
[1753220729630,0.2510924,119530.0,119520.0,0.3241157]
[1753220729821,0.2508924,119530.0,119520.0,0.95149768]
[1753220730931,0.2518924,119530.0,119520.0,0.95149768]
[1753220731430,0.2508924,119530.0,119520.0,0.92862214]
[1753220731734,0.2508924,119530.0,119520.0,0.9534956]
[1753220733537,0.2090768,119530.0,119520.0,0.9534956]
[1753220733831,0.1256332,119540.0,119520.0,0.9534956]
[1753220733832,0.2928824,119540.0,119530.0,0.2093517]
[1753220734130,0.2090597,119540.0,119530.0,0.61158982]
[1753220734529,0.1672489,119540.0,119530.0,0.87620448]
[1753220734840,0.1672489,119540.0,119530.0,0.95146017]
[1753220736138,0.1672489,119540.0,119530.0,0.95138741]
[1753220736838,0.1672489,119540.0,119530.0,0.95238741]
[1753220737037,0.1672489,119540.0,119530.0,0.95338741]
[1753220738139,0.1672489,119540.0,119530.0,0.87820448]
[1753220738639,0.1672489,119540.0,119530.0,0.95335232]
[1753220739039,0.1672489,119540.0,119530.0,0.87820448]
[1753220739235,0.1672489,119540.0,119530.0,0.95333884]
[1753220740336,0.1672489,119540.0,119530.0,0.94026829]
[1753220740537,0.1672489,119540.0,119530.0,0.95333679]
[1753220740737,0.1672489,119540.0,119530.0,0.87820243]
[1753220741133,0.1672489,119540.0,119530.0,0.95331807]
[1753220749548,0.1672489,119540.0,119530.0,0.94351604]
[1753220749748,0.1672489,119540.0,119530.0,0.95331807]
[1753220752852,0.1672489,119540.0,119530.0,0.95331806]
[1753220755759,0.1672489,119540.0,119530.0,1.52643806]
[1753220757563,0.1672489,119540.0,119530.0,1.45132242]
[1753220758756,0.1672489,119540.0,119530.0,1.44152038]
[1753220758957,0.1672489,119540.0,119530.0,1.4513224]
[1753220760563,0.1672489,119540.0,119530.0,1.42845102]
[1753220761163,0.1672489,119540.0,119530.0,1.53380796]
[1753220762655,0.1672489,119540.0,119530.0,1.54360969]
[1753220762860,0.1672489,119540.0,119530.0,1.55667867]
[1753220763765,0.1672489,119540.0,119530.0,1.54360969]
[1753220763967,0.1672489,119540.0,119530.0,1.53380796]
[1753220764168,0.1672489,119540.0,119530.0,1.55667867]
[1753220764369,0.2510468,119550.0,119540.0,0.2089876]
[1753220764663,0.1672237,119550.0,119540.0,1.03573021]
[1753220764856,0.1672237,119550.0,119540.0,1.07753861]
[1753220765861,0.292836,119560.0,119550.0,0.3247437]
[1753220766058,0.292636,119560.0,119550.0,1.24571133]
[1753220766259,0.292636,119560.0,119550.0,1.18550907]
[1753220766664,0.292636,119560.0,119550.0,1.32744803]
[1753220767069,0.292636,119560.0,119550.0,1.26076815]
[1753220767472,0.293636,119560.0,119550.0,1.26076815]
[1753220767868,0.2528307,119560.0,119550.0,1.52538281]
[1753220768180,0.1692216,119560.0,119550.0,1.52538281]
[1753220768672,0.1692216,119560.0,119550.0,0.95210281]
[1753220768971,0.1692216,119560.0,119550.0,1.52566281]
[1753220769865,0.002,119560.0,119550.0,1.51586108]
[1753220770061,0.002,119560.0,119550.0,1.52566108]
[1753220770772,0.1692097,119560.0,119550.0,1.52566108]
[1753220771374,0.002,119560.0,119550.0,1.52566108]
[1753220772062,0.1692097,119560.0,119550.0,1.59359276]
[1753220772267,0.002,119560.0,119550.0,1.59359276]
[1753220775169,0.1692097,119560.0,119550.0,1.59359276]
[1753220775676,0.002,119560.0,119550.0,1.59359276]
[1753220778476,0.1671689,119590.0,119560.0,0.00779]
[1753220778780,0.2507474,119600.0,119590.0,0.3225677]
[1753220778968,0.2507474,119600.0,119590.0,0.63219462]
[1753220779678,0.2507474,119600.0,119590.0,0.58718236]
[1753220780278,0.2507474,119600.0,119590.0,0.42001466]
[1753220780479,0.51836206,119600.0,119590.0,0.46500904]
[1753220780673,0.78297672,119600.0,119590.0,0.13950438]
[1753220780873,1.35673672,119600.0,119590.0,0.13950438]
[1753220781068,1.35673672,119600.0,119590.0,0.04499438]
[1753220781781,1.35673672,119600.0,119590.0,0.12491438]
[1753220782572,0.8275074,119600.0,119590.0,0.12491438]
[1753220782879,1.35673672,119600.0,119590.0,0.12491438]
[1753220784382,1.35973672,119600.0,119590.0,0.12491438]
[1753220784984,0.8305074,119600.0,119590.0,0.12491438]
[1753220785380,1.35973672,119600.0,119590.0,0.12491438]
[1753220785979,0.8305074,119600.0,119590.0,0.12491438]
[1753220786176,1.35973672,119600.0,119590.0,0.12491438]
[1753220787379,1.35973672,119600.0,119590.0,0.06785898]
[1753220787986,1.35973672,119600.0,119590.0,0.0228646]
[1753220788182,1.35973672,119600.0,119590.0,0.05479403]
[1753220788381,1.35973672,119600.0,119590.0,0.04306869]
[1753220788583,1.35873672,119600.0,119590.0,0.1099225]
[1753220789087,1.35873672,119600.0,119590.0,0.0300025]
[1753220791386,1.52596872,119600.0,119590.0,0.0300025]